[Event "*** Titled Tuesday Blitz"]
[Site "Chess.com"]
[Date "2021.04.06"]
[Round "4"]
[White "Chessdude1987"]
[Black "Orest_Vovk"]
[Result "0-1"]
[WhiteElo "2312"]
[BlackElo "2582"]
[TimeControl "180+1"]
[EndTime "10:41:25 PDT"]
[Termination "Orest_Vovk won by resignation"]

1. e4 {[%clk 0:03:00.9]} 1... Nc6 {[%clk 0:03:00]} 2. d4 {[%clk 0:03:00.5]} 2...
e5 {[%clk 0:02:59.6]} 3. Nf3 {[%clk 0:03:00.7]} 3... exd4 {[%clk 0:02:57.7]} 4.
Nxd4 {[%clk 0:03:01.6]} 4... Nxd4 {[%clk 0:02:58]} 5. Qxd4 {[%clk 0:03:01.2]}
5... Ne7 {[%clk 0:02:58.6]} 6. Bc4 {[%clk 0:02:55.1]} 6... Nc6 {[%clk
0:02:58.4]} 7. Qd5 {[%clk 0:02:50.7]} 7... Qf6 {[%clk 0:02:48]} 8. O-O {[%clk
0:02:42.6]} 8... d6 {[%clk 0:02:43.4]} 9. Bg5 {[%clk 0:02:40]} 9... Qg6 {[%clk
0:02:38.7]} 10. Qd2 {[%clk 0:02:16.2]} 10... Be6 {[%clk 0:02:26.4]} 11. Bxe6
{[%clk 0:02:12.4]} 11... fxe6 {[%clk 0:02:26.1]} 12. Nc3 {[%clk 0:01:58.8]}
12... Be7 {[%clk 0:02:26]} 13. Bxe7 {[%clk 0:01:57.6]} 13... Nxe7 {[%clk
0:02:26]} 14. f4 {[%clk 0:01:58.5]} 14... O-O {[%clk 0:02:25.1]} 15. Rae1 {[%clk
0:01:54.7]} 15... a6 {[%clk 0:02:22.5]} 16. Kh1 {[%clk 0:01:50.5]} 16... Rf7
{[%clk 0:02:20.6]} 17. e5 {[%clk 0:01:47.4]} 17... d5 {[%clk 0:02:19.6]} 18. Ne2
{[%clk 0:01:46.7]} 18... Qh6 {[%clk 0:02:17]} 19. Nd4 {[%clk 0:01:41.5]} 19...
Raf8 {[%clk 0:02:12]} 20. g3 {[%clk 0:01:37.2]} 20... c5 {[%clk 0:02:11.4]} 21.
Nf3 {[%clk 0:01:36.2]} 21... Nf5 {[%clk 0:02:08.3]} 22. Kg2 {[%clk 0:01:35.5]}
22... Qg6 {[%clk 0:01:57]} 23. c3 {[%clk 0:01:33.3]} 23... h6 {[%clk 0:01:46]}
24. Re2 {[%clk 0:01:22.7]} 24... Ne7 {[%clk 0:01:38.7]} 25. Qe3 {[%clk
0:01:18.7]} 25... Rxf4 {[%clk 0:01:33.6]} 26. Qxc5 {[%clk 0:01:05.1]} 26... Nf5
{[%clk 0:01:30.4]} 27. Kh1 {[%clk 0:00:59.7]} 27... Nxg3+ {[%clk 0:01:26.6]} 28.
hxg3 {[%clk 0:00:53.3]} 28... Rxf3 {[%clk 0:01:23]} 29. Ref2 {[%clk 0:00:49.7]}
29... Rxf2 {[%clk 0:01:15.5]} 30. Rxf2 {[%clk 0:00:49.6]} 30... Rxf2 {[%clk
0:01:14.9]} 31. Qxf2 {[%clk 0:00:49.1]} 31... Qe4+ {[%clk 0:01:09.1]} 32. Kh2
{[%clk 0:00:49.3]} 32... Qxe5 {[%clk 0:01:08.2]} 33. a4 {[%clk 0:00:48]} 33...
Qf6 {[%clk 0:00:57.2]} 34. Qe2 {[%clk 0:00:45.5]} 34... e5 {[%clk 0:00:54.2]}
35. Qd2 {[%clk 0:00:40.7]} 35... d4 {[%clk 0:00:50.9]} 36. cxd4 {[%clk
0:00:38.4]} 36... exd4 {[%clk 0:00:50.9]} 37. a5 {[%clk 0:00:37.6]} 37... Qe5
{[%clk 0:00:41.8]} 38. Qd3 {[%clk 0:00:35.8]} 38... Qd5 {[%clk 0:00:32.6]} 39.
Kg1 {[%clk 0:00:31.4]} 39... Qxa5 {[%clk 0:00:28.4]} 40. Qxd4 {[%clk 0:00:29.9]}
40... Qe1+ {[%clk 0:00:28.5]} 41. Kg2 {[%clk 0:00:30.1]} 41... Qe2+ {[%clk
0:00:28.8]} 42. Kh3 {[%clk 0:00:29.3]} 42... Qe7 {[%clk 0:00:27.6]} 43. Kg2
{[%clk 0:00:29]} 43... Qf7 {[%clk 0:00:23.5]} 44. Qd8+ {[%clk 0:00:28.1]} 44...
Kh7 {[%clk 0:00:23.4]} 45. Qd3+ {[%clk 0:00:29]} 45... g6 {[%clk 0:00:23.5]} 46.
Qd4 {[%clk 0:00:27.9]} 46... h5 {[%clk 0:00:22.5]} 47. Qd3 {[%clk 0:00:25.6]}
47... b5 {[%clk 0:00:20.7]} 48. Qd6 {[%clk 0:00:24.9]} 48... Qg7 {[%clk
0:00:20.2]} 49. Qd2 {[%clk 0:00:20.9]} 49... Qb7+ {[%clk 0:00:19.3]} 50. Kh2
{[%clk 0:00:20.9]} 50... b4 {[%clk 0:00:19.9]} 51. Qd4 {[%clk 0:00:18.5]} 51...
a5 {[%clk 0:00:19.5]} 52. Kh3 {[%clk 0:00:15.7]} 52... a4 {[%clk 0:00:18.7]} 53.
Kh4 {[%clk 0:00:14.8]} 53... Qe7+ {[%clk 0:00:17.1]} 54. Kh3 {[%clk 0:00:14.5]}
54... a3 {[%clk 0:00:17.2]} 55. bxa3 {[%clk 0:00:11.7]} 55... bxa3 {[%clk
0:00:17.5]} 56. g4 {[%clk 0:00:12.1]} 56... Qe6 {[%clk 0:00:12.3]} 57. Qa7+
{[%clk 0:00:11.1]} 57... Kh6 {[%clk 0:00:12.1]} 58. Qxa3 {[%clk 0:00:07.8]}
58... Qxg4+ {[%clk 0:00:12.2]} 59. Kh2 {[%clk 0:00:08]} 59... Qh4+ {[%clk
0:00:12.6]} 60. Kg2 {[%clk 0:00:07.7]} 60... Qg5+ {[%clk 0:00:13.5]} 61. Kh2
{[%clk 0:00:07.8]} 61... Qf4+ {[%clk 0:00:13.8]} 62. Kg2 {[%clk 0:00:07.9]}
62... h4 {[%clk 0:00:13.6]} 63. Qh3 {[%clk 0:00:06.6]} 63... Qg3+ {[%clk
0:00:13.2]} 64. Qxg3 {[%clk 0:00:06.8]} 64... hxg3 {[%clk 0:00:14.1]} 65. Kxg3
{[%clk 0:00:07.4]} 65... Kg5 {[%clk 0:00:14.7]} 66. Kf3 {[%clk 0:00:07.9]} 66...
Kh4 {[%clk 0:00:14.7]} 67. Kg2 {[%clk 0:00:08.4]} 67... Kg4 {[%clk 0:00:15]} 68.
Kf2 {[%clk 0:00:08.8]} 68... Kh3 {[%clk 0:00:14.9]} 69. Kf3 {[%clk 0:00:08.7]}
69... g5 {[%clk 0:00:14.6]} 70. Kf2 {[%clk 0:00:09.3]} 70... g4 {[%clk
0:00:13.2]} 71. Kf1 {[%clk 0:00:08.9]} 71... g3 {[%clk 0:00:09.4]} 72. Kg1
{[%clk 0:00:09]} 72... g2 {[%clk 0:00:09.5]} 73. Kf2 {[%clk 0:00:08.9]} 73...
Kh2 {[%clk 0:00:09.8]} 0-1

[Event "*** Titled Tuesday Blitz"]
[Site "Chess.com"]
[Date "2021.04.06"]
[Round "4"]
[White "MIJuanReyesRosa"]
[Black "HanSchut"]
[Result "0-1"]
[WhiteElo "1983"]
[BlackElo "2253"]
[TimeControl "180+1"]
[EndTime "10:41:38 PDT"]
[Termination "HanSchut won on time"]

1. d4 {[%clk 0:02:58.8]} 1... Nf6 {[%clk 0:02:58.4]} 2. Nf3 {[%clk 0:02:58.3]}
2... g6 {[%clk 0:02:56.6]} 3. c4 {[%clk 0:02:57.9]} 3... Bg7 {[%clk 0:02:49.9]}
4. Nc3 {[%clk 0:02:57.8]} 4... d5 {[%clk 0:02:50.5]} 5. Bf4 {[%clk 0:02:56.2]}
5... O-O {[%clk 0:02:44.3]} 6. Rc1 {[%clk 0:02:55.6]} 6... c5 {[%clk 0:02:37.7]}
7. dxc5 {[%clk 0:02:53.4]} 7... Qa5 {[%clk 0:02:33.8]} 8. cxd5 {[%clk 0:02:46]}
8... Qxc5 {[%clk 0:02:28.3]} 9. e4 {[%clk 0:02:38.1]} 9... Qa5 {[%clk
0:02:25.9]} 10. Bd3 {[%clk 0:02:25.6]} 10... e6 {[%clk 0:02:17.8]} 11. dxe6
{[%clk 0:01:55.7]} 11... Bxe6 {[%clk 0:02:17.6]} 12. O-O {[%clk 0:01:55.5]}
12... Nc6 {[%clk 0:02:10.3]} 13. Ng5 {[%clk 0:01:37.3]} 13... Bg4 {[%clk
0:02:03.8]} 14. f3 {[%clk 0:01:26.2]} 14... h6 {[%clk 0:02:03.6]} 15. Nxf7
{[%clk 0:01:16.5]} 15... Rxf7 {[%clk 0:01:54.3]} 16. fxg4 {[%clk 0:01:15.7]}
16... Rd7 {[%clk 0:01:19.2]} 17. Bc4+ {[%clk 0:00:48.1]} 17... Kh7 {[%clk
0:01:13.2]} 18. Qb3 {[%clk 0:00:44.3]} 18... Qc5+ {[%clk 0:01:06.8]} 19. Kh1
{[%clk 0:00:43.5]} 19... Na5 {[%clk 0:01:07.1]} 20. Qb5 {[%clk 0:00:40.6]} 20...
Qxc4 {[%clk 0:00:57.2]} 21. Qxa5 {[%clk 0:00:39.5]} 21... Nxe4 {[%clk
0:00:56.8]} 22. Nxe4 {[%clk 0:00:31.1]} 22... Qxe4 {[%clk 0:00:56.6]} 23. Rce1
{[%clk 0:00:30.3]} 23... Qd5 {[%clk 0:00:40.1]} 24. Qxd5 {[%clk 0:00:26.4]}
24... Rxd5 {[%clk 0:00:41]} 25. Re7 {[%clk 0:00:26]} 25... b6 {[%clk 0:00:28.1]}
26. Be3 {[%clk 0:00:22.7]} 26... Kg8 {[%clk 0:00:16.8]} 27. h3 {[%clk
0:00:21.5]} 27... Rf8 {[%clk 0:00:14.3]} 28. Rxf8+ {[%clk 0:00:19.5]} 28... Kxf8
{[%clk 0:00:15.2]} 29. Rxa7 {[%clk 0:00:19.4]} 29... Be5 {[%clk 0:00:11.6]} 30.
Bxh6+ {[%clk 0:00:18.7]} 30... Ke8 {[%clk 0:00:10.9]} 31. g3 {[%clk 0:00:14.6]}
31... Bxg3 {[%clk 0:00:08.1]} 32. Kg2 {[%clk 0:00:13.8]} 32... Be5 {[%clk
0:00:08]} 33. Rb7 {[%clk 0:00:13]} 33... Rb5 {[%clk 0:00:07.2]} 34. b3 {[%clk
0:00:12.2]} 34... Ra5 {[%clk 0:00:06.3]} 35. Bg5 {[%clk 0:00:11.5]} 35... Rxa2+
{[%clk 0:00:05.7]} 36. Kf3 {[%clk 0:00:11.5]} 36... Bd4 {[%clk 0:00:05.9]} 37.
Re7+ {[%clk 0:00:10.3]} 37... Kf8 {[%clk 0:00:05.4]} 38. Rb7 {[%clk 0:00:09.8]}
38... Bc5 {[%clk 0:00:05.6]} 39. Bf6 {[%clk 0:00:08.8]} 39... Ra3 {[%clk
0:00:05.4]} 40. Ke4 {[%clk 0:00:07.6]} 40... Rxb3 {[%clk 0:00:05.9]} 41. h4
{[%clk 0:00:08.1]} 41... Re3+ {[%clk 0:00:06]} 42. Kd5 {[%clk 0:00:07.8]} 42...
Rd3+ {[%clk 0:00:03.9]} 43. Ke4 {[%clk 0:00:07.3]} 43... Rg3 {[%clk 0:00:04.8]}
44. Kf4 {[%clk 0:00:05.8]} 44... Rd3 {[%clk 0:00:04.5]} 45. h5 {[%clk
0:00:05.5]} 45... gxh5 {[%clk 0:00:04.5]} 46. gxh5 {[%clk 0:00:05.6]} 46... Rh3
{[%clk 0:00:05.4]} 47. Kg5 {[%clk 0:00:05]} 47... Rg3+ {[%clk 0:00:05.5]} 48.
Kf5 {[%clk 0:00:05.2]} 48... Rf3+ {[%clk 0:00:05.6]} 49. Kg6 {[%clk 0:00:05.3]}
49... Rg3+ {[%clk 0:00:05.8]} 50. Kf5 {[%clk 0:00:05.5]} 50... Rh3 {[%clk
0:00:05.9]} 51. Kg5 {[%clk 0:00:03.9]} 51... Be3+ {[%clk 0:00:04.4]} 52. Kg4
{[%clk 0:00:03.9]} 52... Rh1 {[%clk 0:00:03.8]} 53. Bg5 {[%clk 0:00:03.2]} 53...
Rg1+ {[%clk 0:00:03.4]} 54. Kf3 {[%clk 0:00:03.3]} 54... Bxg5 {[%clk 0:00:03.3]}
55. h6 {[%clk 0:00:02.4]} 55... Bxh6 {[%clk 0:00:03.2]} 56. Rxb6 {[%clk
0:00:02.5]} 56... Bg7 {[%clk 0:00:03.3]} 57. Rb8+ {[%clk 0:00:03.4]} 57... Kf7
{[%clk 0:00:03.5]} 58. Rb7+ {[%clk 0:00:03.4]} 58... Kg6 {[%clk 0:00:04]} 59.
Ke4 {[%clk 0:00:04.3]} 59... Bf6 {[%clk 0:00:04.5]} 60. Rb6 {[%clk 0:00:04.4]}
60... Rg4+ {[%clk 0:00:04.6]} 61. Kf3 {[%clk 0:00:04.3]} 61... Rg5 {[%clk
0:00:03.9]} 62. Ke4 {[%clk 0:00:03.9]} 62... Re5+ {[%clk 0:00:04]} 63. Kf3
{[%clk 0:00:03.9]} 63... Kf5 {[%clk 0:00:04.6]} 64. Rc6 {[%clk 0:00:03.6]} 64...
Bg5 {[%clk 0:00:05]} 65. Rd6 {[%clk 0:00:03.2]} 65... Re3+ {[%clk 0:00:05]} 66.
Kf2 {[%clk 0:00:03.2]} 66... Kg4 {[%clk 0:00:04.1]} 67. Rd4+ {[%clk 0:00:02.6]}
67... Bf4 {[%clk 0:00:04.6]} 68. Rd8 {[%clk 0:00:01.7]} 68... Ra3 {[%clk
0:00:03.4]} 69. Rg8+ {[%clk 0:00:01.4]} 69... Bg5 {[%clk 0:00:03.9]} 0-1

[Event "*** Titled Tuesday Blitz"]
[Site "Chess.com"]
[Date "2021.04.06"]
[Round "4"]
[White "Aygehovit1992"]
[Black "BigAl"]
[Result "1-0"]
[WhiteElo "2654"]
[BlackElo "2489"]
[TimeControl "180+1"]
[EndTime "10:41:47 PDT"]
[Termination "Aygehovit1992 won by resignation"]

1. e4 {[%clk 0:03:00.9]} 1... c6 {[%clk 0:03:00]} 2. Nc3 {[%clk 0:03:01.8]} 2...
d5 {[%clk 0:03:00.3]} 3. Qf3 {[%clk 0:02:59.2]} 3... dxe4 {[%clk 0:02:59.2]} 4.
Nxe4 {[%clk 0:02:59]} 4... Nd7 {[%clk 0:02:59.8]} 5. d4 {[%clk 0:02:57.7]} 5...
Ngf6 {[%clk 0:02:57]} 6. Nxf6+ {[%clk 0:02:43.6]} 6... Nxf6 {[%clk 0:02:56.9]}
7. c3 {[%clk 0:02:44]} 7... g6 {[%clk 0:02:51.2]} 8. Bc4 {[%clk 0:02:43.5]} 8...
Bg7 {[%clk 0:02:51]} 9. Ne2 {[%clk 0:02:40.9]} 9... O-O {[%clk 0:02:51]} 10. O-O
{[%clk 0:02:40.8]} 10... a5 {[%clk 0:02:46.6]} 11. Bg5 {[%clk 0:02:39]} 11... a4
{[%clk 0:02:43.8]} 12. Rad1 {[%clk 0:02:38]} 12... Qa5 {[%clk 0:02:36.8]} 13.
Bh4 {[%clk 0:02:29.6]} 13... Bf5 {[%clk 0:02:28.4]} 14. h3 {[%clk 0:02:24.1]}
14... Be4 {[%clk 0:02:16.4]} 15. Qe3 {[%clk 0:02:17.3]} 15... Bd5 {[%clk
0:02:16.6]} 16. Bxf6 {[%clk 0:02:14.3]} 16... Bxf6 {[%clk 0:02:05.8]} 17. Bxd5
{[%clk 0:02:13.9]} 17... Qxd5 {[%clk 0:02:06]} 18. a3 {[%clk 0:02:12.9]} 18...
Qb3 {[%clk 0:02:01.3]} 19. Qd2 {[%clk 0:02:12.3]} 19... Rad8 {[%clk 0:02:00.8]}
20. Nc1 {[%clk 0:02:07.8]} 20... Qc4 {[%clk 0:01:55.6]} 21. Nd3 {[%clk
0:02:04.6]} 21... Bg7 {[%clk 0:01:45.6]} 22. Rfe1 {[%clk 0:02:03.6]} 22... e6
{[%clk 0:01:44.7]} 23. h4 {[%clk 0:01:54.1]} 23... Rd5 {[%clk 0:01:40]} 24. Nf4
{[%clk 0:01:42]} 24... Bh6 {[%clk 0:01:31.3]} 25. g3 {[%clk 0:01:38.6]} 25...
Rf5 {[%clk 0:01:29.6]} 26. Re4 {[%clk 0:01:35.1]} 26... Qb3 {[%clk 0:01:21.9]}
27. Rde1 {[%clk 0:01:28.7]} 27... Bxf4 {[%clk 0:01:19.2]} 28. Rxf4 {[%clk
0:01:28.8]} 28... Rxf4 {[%clk 0:01:19.3]} 29. gxf4 {[%clk 0:01:29.7]} 29... Qd5
{[%clk 0:01:10.7]} 30. Re5 {[%clk 0:01:27.8]} 30... Qf3 {[%clk 0:01:10.9]} 31.
Qe3 {[%clk 0:01:27.8]} 31... Qd1+ {[%clk 0:01:09.8]} 32. Kh2 {[%clk 0:01:26.2]}
32... Rd8 {[%clk 0:01:05.7]} 33. h5 {[%clk 0:01:20.5]} 33... Rd5 {[%clk
0:00:56.1]} 34. h6 {[%clk 0:01:20.3]} 34... Qg4 {[%clk 0:00:49.5]} 35. Qg3
{[%clk 0:01:14.7]} 35... Qxg3+ {[%clk 0:00:35.2]} 36. Kxg3 {[%clk 0:01:15.6]}
36... f6 {[%clk 0:00:33.8]} 37. Rxe6 {[%clk 0:01:10.5]} 37... Kf7 {[%clk
0:00:34.4]} 38. Re4 {[%clk 0:01:10.4]} 38... Rb5 {[%clk 0:00:32.8]} 39. Re2
{[%clk 0:01:02.6]} 39... Rh5 {[%clk 0:00:32.6]} 40. Rd2 {[%clk 0:01:00.5]} 40...
Ke6 {[%clk 0:00:27.8]} 41. c4 {[%clk 0:00:39.8]} 41... Rxh6 {[%clk 0:00:27.2]}
42. d5+ {[%clk 0:00:40.2]} 42... cxd5 {[%clk 0:00:27.9]} 43. Rxd5 {[%clk
0:00:40.8]} 43... Rh5 {[%clk 0:00:21]} 44. Rd8 {[%clk 0:00:31.8]} 44... Rc5
{[%clk 0:00:20.5]} 45. Rb8 {[%clk 0:00:31.9]} 45... Rxc4 {[%clk 0:00:18]} 46.
Rxb7 {[%clk 0:00:32.2]} 46... h5 {[%clk 0:00:17.3]} 47. Rb6+ {[%clk 0:00:19.7]}
47... Kf5 {[%clk 0:00:17.7]} 48. Rb5+ {[%clk 0:00:20.1]} 48... Ke6 {[%clk
0:00:17.7]} 49. f3 {[%clk 0:00:17.2]} 49... Rc1 {[%clk 0:00:16.3]} 50. Rb4
{[%clk 0:00:15.8]} 50... Rc2 {[%clk 0:00:13.8]} 51. Rxa4 {[%clk 0:00:15.7]}
51... Rxb2 {[%clk 0:00:13.7]} 52. Ra6+ {[%clk 0:00:16.2]} 52... Kf5 {[%clk
0:00:13.9]} 53. Ra5+ {[%clk 0:00:16.7]} 53... Ke6 {[%clk 0:00:14.3]} 54. a4
{[%clk 0:00:17]} 54... Ra2 {[%clk 0:00:13.1]} 55. f5+ {[%clk 0:00:10.6]} 55...
gxf5 {[%clk 0:00:12.4]} 56. Kf4 {[%clk 0:00:11]} 56... Ra3 {[%clk 0:00:07.9]}
57. Ra6+ {[%clk 0:00:10.4]} 57... Kf7 {[%clk 0:00:08.1]} 58. a5 {[%clk
0:00:02.7]} 58... Kg6 {[%clk 0:00:07.3]} 59. Ra8 {[%clk 0:00:02.5]} 59... Ra4+
{[%clk 0:00:08.2]} 60. Kg3 {[%clk 0:00:02.9]} 60... f4+ {[%clk 0:00:07.8]} 61.
Kh4 {[%clk 0:00:02.8]} 61... Ra1 {[%clk 0:00:07.8]} 62. Kh3 {[%clk 0:00:02.3]}
62... Kf5 {[%clk 0:00:07.7]} 63. a6 {[%clk 0:00:02.4]} 63... Ra3 {[%clk
0:00:06.8]} 64. a7 {[%clk 0:00:02]} 64... Rxf3+ {[%clk 0:00:06.7]} 65. Kg2
{[%clk 0:00:02]} 65... Rg3+ {[%clk 0:00:07.3]} 66. Kf2 {[%clk 0:00:02.3]} 66...
Ra3 {[%clk 0:00:08.2]} 67. Kg2 {[%clk 0:00:02.3]} 67... h4 {[%clk 0:00:08.5]}
68. Kh2 {[%clk 0:00:01.8]} 68... Rb3 {[%clk 0:00:08.6]} 69. Rb8 {[%clk
0:00:01.5]} 69... Ra3 {[%clk 0:00:07.6]} 70. a8=Q {[%clk 0:00:02.4]} 70... Rf3
{[%clk 0:00:07.2]} 71. Qxf3 {[%clk 0:00:02]} 71... Kg5 {[%clk 0:00:07.4]} 72.
Kh3 {[%clk 0:00:02.9]} 72... f5 {[%clk 0:00:07.6]} 73. Qh5+ {[%clk 0:00:03.1]}
73... Kxh5 {[%clk 0:00:07.6]} 74. Rh8+ {[%clk 0:00:04]} 74... Kg5 {[%clk
0:00:08.5]} 75. Rxh4 {[%clk 0:00:04.6]} 75... f3 {[%clk 0:00:09.3]} 76. Rh8
{[%clk 0:00:05.5]} 76... Kf4 {[%clk 0:00:09.5]} 77. Kh2 {[%clk 0:00:05.6]} 77...
Ke3 {[%clk 0:00:09.6]} 78. Kg1 {[%clk 0:00:06.5]} 78... Kf4 {[%clk 0:00:08.9]}
79. Kf1 {[%clk 0:00:07.4]} 79... Kg4 {[%clk 0:00:09.7]} 80. Rg8+ {[%clk
0:00:07.4]} 80... Kf4 {[%clk 0:00:09.9]} 81. Kf2 {[%clk 0:00:08.3]} 1-0

[Event "*** Titled Tuesday Blitz"]
[Site "Chess.com"]
[Date "2021.04.06"]
[Round "4"]
[White "goofypenguin96"]
[Black "Chamal_Gedgafov"]
[Result "1/2-1/2"]
[WhiteElo "2371"]
[BlackElo "2207"]
[TimeControl "180+1"]
[EndTime "10:41:54 PDT"]
[Termination "Game drawn by repetition"]

1. e4 {[%clk 0:03:00.9]} 1... e6 {[%clk 0:02:49.5]} 2. d4 {[%clk 0:03:00.7]}
2... d5 {[%clk 0:02:48.9]} 3. Nd2 {[%clk 0:03:00.9]} 3... a6 {[%clk 0:02:48.4]}
4. Ngf3 {[%clk 0:02:59.1]} 4... c5 {[%clk 0:02:45.1]} 5. exd5 {[%clk 0:02:57.4]}
5... exd5 {[%clk 0:02:46]} 6. Bd3 {[%clk 0:02:53.5]} 6... c4 {[%clk 0:02:45.4]}
7. Be2 {[%clk 0:02:53.8]} 7... Nf6 {[%clk 0:02:45.3]} 8. a4 {[%clk 0:02:51.8]}
8... Nc6 {[%clk 0:02:42.6]} 9. b3 {[%clk 0:02:51.1]} 9... cxb3 {[%clk
0:02:41.6]} 10. Nxb3 {[%clk 0:02:50.5]} 10... Bd6 {[%clk 0:02:37.4]} 11. O-O
{[%clk 0:02:50.4]} 11... O-O {[%clk 0:02:37]} 12. Bg5 {[%clk 0:02:50.4]} 12...
h6 {[%clk 0:02:37.2]} 13. Bh4 {[%clk 0:02:50.5]} 13... Bf5 {[%clk 0:02:31.8]}
14. Bd3 {[%clk 0:02:42.1]} 14... Bxd3 {[%clk 0:02:30.6]} 15. Qxd3 {[%clk
0:02:43]} 15... Re8 {[%clk 0:02:30.9]} 16. c3 {[%clk 0:02:39.3]} 16... g5 {[%clk
0:02:25.4]} 17. Bg3 {[%clk 0:02:26.9]} 17... Ne4 {[%clk 0:02:23.3]} 18. Rfe1
{[%clk 0:02:25.2]} 18... f5 {[%clk 0:02:20.5]} 19. Bxd6 {[%clk 0:02:23.5]} 19...
Qxd6 {[%clk 0:02:19.2]} 20. c4 {[%clk 0:02:20.3]} 20... dxc4 {[%clk 0:02:15.1]}
21. Qxc4+ {[%clk 0:02:20.2]} 21... Kg7 {[%clk 0:02:13.4]} 22. Nc5 {[%clk
0:02:10.8]} 22... Nxc5 {[%clk 0:01:43.4]} 23. dxc5 {[%clk 0:02:09.4]} 23... Qf6
{[%clk 0:01:33.6]} 24. Rab1 {[%clk 0:02:03.5]} 24... Re7 {[%clk 0:01:23.7]} 25.
Rxe7+ {[%clk 0:01:58.9]} 25... Qxe7 {[%clk 0:01:23.2]} 26. Qd5 {[%clk 0:01:59]}
26... Rf8 {[%clk 0:01:16.2]} 27. h3 {[%clk 0:01:58]} 27... Rf7 {[%clk 0:01:13]}
28. Nd4 {[%clk 0:01:54.4]} 28... Nxd4 {[%clk 0:01:03.4]} 29. Qxd4+ {[%clk
0:01:55.3]} 29... Qf6 {[%clk 0:01:02.9]} 30. Qd5 {[%clk 0:01:54.5]} 30... Qe7
{[%clk 0:00:55.5]} 31. h4 {[%clk 0:01:34.5]} 31... gxh4 {[%clk 0:00:40.5]} 32.
Qd4+ {[%clk 0:01:29.3]} 32... Qf6 {[%clk 0:00:39.1]} 33. Qf4 {[%clk 0:01:29.1]}
33... Qg5 {[%clk 0:00:34.9]} 34. Qb8 {[%clk 0:01:16.4]} 34... Qe7 {[%clk
0:00:34]} 35. Qf4 {[%clk 0:01:04.4]} 35... Qe4 {[%clk 0:00:32.7]} 36. Qxe4
{[%clk 0:00:51.2]} 36... fxe4 {[%clk 0:00:32.2]} 37. Rb6 {[%clk 0:00:52.1]}
37... Rc7 {[%clk 0:00:30.4]} 38. Kh2 {[%clk 0:00:49.3]} 38... Rf7 {[%clk
0:00:26.5]} 39. Kg1 {[%clk 0:00:45.4]} 39... Rc7 {[%clk 0:00:25.8]} 40. Kf1
{[%clk 0:00:45.7]} 40... Rxc5 {[%clk 0:00:23.3]} 41. Rxb7+ {[%clk 0:00:46]}
41... Kg6 {[%clk 0:00:23.7]} 42. Rb6+ {[%clk 0:00:46.1]} 42... Kg5 {[%clk
0:00:22.1]} 43. Rxa6 {[%clk 0:00:46.4]} 43... Rc2 {[%clk 0:00:21]} 44. Ra8
{[%clk 0:00:27.2]} 44... Ra2 {[%clk 0:00:20.5]} 45. a5 {[%clk 0:00:26.7]} 45...
Kf4 {[%clk 0:00:17.1]} 46. a6 {[%clk 0:00:24.6]} 46... e3 {[%clk 0:00:17.2]} 47.
Rf8+ {[%clk 0:00:20.7]} 47... Ke4 {[%clk 0:00:16.8]} 48. Re8+ {[%clk 0:00:20.9]}
48... Kf4 {[%clk 0:00:17.1]} 49. Rxe3 {[%clk 0:00:19.4]} 49... Rxa6 {[%clk
0:00:16.1]} 50. Kg1 {[%clk 0:00:19.6]} 50... Ra2 {[%clk 0:00:15.3]} 51. Rf3+
{[%clk 0:00:19.3]} 51... Kg4 {[%clk 0:00:15.2]} 52. Kh2 {[%clk 0:00:20.2]} 52...
Rb2 {[%clk 0:00:13.5]} 53. Rf8 {[%clk 0:00:20.2]} 53... Ra2 {[%clk 0:00:13.1]}
54. Rf6 {[%clk 0:00:19.6]} 54... Kg5 {[%clk 0:00:11.5]} 55. Rf8 {[%clk 0:00:19]}
55... Ra3 {[%clk 0:00:11]} 56. f3 {[%clk 0:00:19.2]} 56... Ra1 {[%clk
0:00:10.8]} 57. Rc8 {[%clk 0:00:18.3]} 57... Rb1 {[%clk 0:00:10.4]} 58. Rc4
{[%clk 0:00:18.5]} 58... Ra1 {[%clk 0:00:09.5]} 59. Rg4+ {[%clk 0:00:18.5]}
59... Kh5 {[%clk 0:00:08.9]} 60. Rb4 {[%clk 0:00:18.7]} 60... Rc1 {[%clk
0:00:08.3]} 61. Rb5+ {[%clk 0:00:18.9]} 61... Kg6 {[%clk 0:00:07.8]} 62. Kh3
{[%clk 0:00:19.1]} 62... Rh1+ {[%clk 0:00:07.6]} 63. Kg4 {[%clk 0:00:19.3]}
63... h5+ {[%clk 0:00:07.7]} 64. Kf4 {[%clk 0:00:19]} 64... h3 {[%clk
0:00:07.3]} 65. Rb6+ {[%clk 0:00:18.6]} 65... Kh7 {[%clk 0:00:05.3]} 66. g3
{[%clk 0:00:18.9]} 66... h2 {[%clk 0:00:04.9]} 67. Rb2 {[%clk 0:00:18.9]} 67...
Kg6 {[%clk 0:00:04.7]} 68. Rg2 {[%clk 0:00:18.7]} 68... Kf6 {[%clk 0:00:03.4]}
69. Re2 {[%clk 0:00:18.8]} 69... Kg6 {[%clk 0:00:02.8]} 70. Rf2 {[%clk
0:00:18.5]} 70... Kf6 {[%clk 0:00:02.8]} 71. Rd2 {[%clk 0:00:18.8]} 71... Kg6
{[%clk 0:00:03]} 72. Rc2 {[%clk 0:00:19]} 72... Kf6 {[%clk 0:00:03.9]} 73. Rc6+
{[%clk 0:00:19.1]} 73... Kf7 {[%clk 0:00:03.8]} 74. Rc2 {[%clk 0:00:19.1]} 74...
Kf6 {[%clk 0:00:03.8]} 75. Ra2 {[%clk 0:00:19.2]} 75... Kg6 {[%clk 0:00:04.3]}
76. Rg2 {[%clk 0:00:18.9]} 76... Kf6 {[%clk 0:00:05.2]} 77. Rf2 {[%clk
0:00:18.6]} 77... Kg6 {[%clk 0:00:06.1]} 78. Re2 {[%clk 0:00:19]} 78... Kf6
{[%clk 0:00:06.5]} 79. Rc2 {[%clk 0:00:19.3]} 79... Kg6 {[%clk 0:00:06.8]} 80.
Rc6+ {[%clk 0:00:19.5]} 80... Kf7 {[%clk 0:00:07]} 81. Rc7+ {[%clk 0:00:19.3]}
81... Kf6 {[%clk 0:00:06.4]} 82. Rc2 {[%clk 0:00:20.2]} 82... Kg6 {[%clk
0:00:05.9]} 83. Rc6+ {[%clk 0:00:20.2]} 83... Kf7 {[%clk 0:00:05.9]} 1/2-1/2